fUST/lending_fUST_20250606
["ID","MTS","AMOUNT","RATE_DAILY","PERIOD"]
[364706945,1749213053972,-1101.47,0.00022465,2]
[364706946,1749213053981,-453.26,0.00022465,2]
[364706947,1749213053991,-463.99,0.00022465,2]
[364706948,1749213053999,-4644.77,0.00022465,2]
[364706949,1749213054009,-440.0,0.00022465,2]
[364706950,1749213054020,-503.93,0.00022465,2]
[364706951,1749213054030,-759.25,0.00022465,2]
[364706952,1749213054039,-819.71,0.00022465,2]
[364706953,1749213054048,-944.35,0.00022465,2]
[364706954,1749213054057,-1034.83,0.00022465,2]
[364706955,1749213054067,-579.80391535,0.00022465,2]
[364706956,1749213054077,-857.67,0.00022465,2]
[364706957,1749213054086,-440.0,0.00022465,2]
[364706958,1749213054096,-3064.33,0.00022465,2]
[364706959,1749213054105,-440.0,0.00022465,2]
[364706960,1749213054116,-1856.01,0.00022465,2]
[364706961,1749213054125,-440.0,0.00022465,2]
[364706962,1749213054135,-440.0,0.00022465,2]
[364706963,1749213054144,-12675.69866947,0.000225,60]
[364706964,1749213054153,-2257.36867115,0.00022506,2]
[364706965,1749213054162,-1617.99505649,0.00022561,2]
[364706966,1749213054172,-364.7156952,0.00022575,2]
[364706967,1749213054181,-364.7156952,0.00022575,2]
[364706968,1749213054191,-729.297365,0.00022575,2]
[364706969,1749213054200,-2148.28383548,0.0002259,2]
[364706970,1749213054209,-5000.0,0.00022614,2]
[364706971,1749213054218,-2904.3218691,0.00022624,7]
[364706972,1749213054227,-2565.65018686,0.00022665,2]
[364706973,1749213054236,-500.0,0.00022673,2]
[364706974,1749213054246,-501.60077423,0.00022673,2]
[364706975,1749213054255,-272.39092851,0.00022673,2]
[364706976,1749213054265,-512.93391595,0.00022673,2]
[364706977,1749213054276,-501.03912607,0.00022673,2]
[364706978,1749213054286,-500.0,0.00022673,2]
[364706979,1749213054296,-500.0,0.00022673,2]
[364706980,1749213054307,-501.24933724,0.00022673,2]
[364706981,1749213054317,-503.03399779,0.00022673,2]
[364706982,1749213054326,-525.97332346,0.00022673,2]
[364706983,1749213054338,-200.86059506,0.00022673,2]
[364706984,1749213054353,-500.0,0.00022673,2]
[364706985,1749213054362,-503.53306171,0.00022673,2]
[364706986,1749213054372,-500.0,0.00022673,2]
[364706987,1749213054381,-500.0,0.00022673,2]
[364706988,1749213054391,-500.0,0.00022673,2]
[364706989,1749213054400,-600.0,0.00022684,2]
[364706990,1749213054410,-500.0,0.00022684,2]
[364706991,1749213054419,-1000.0,0.00022684,2]
[364706992,1749213054430,-1000.0,0.00022684,2]
[364706993,1749213054439,-1000.0,0.00022684,2]
[364706994,1749213054449,-302528.45982293,0.000227,2]
[364706995,1749213054459,-163.96688806,0.00022735,2]
[364706996,1749213054468,-500.0,0.00022735,2]
[364706997,1749213054478,-1180.0,0.00022735,2]
[364706998,1749213054487,-155.57692534,0.00022735,2]
[364706999,1749213054496,-151.0,0.00022735,2]
[364707000,1749213054505,-151.0,0.00022735,2]
[364707001,1749213054514,-500.0,0.00022735,2]
[364707002,1749213054525,-152.57428878,0.00022735,2]
[364707003,1749213054534,-154.42227972,0.00022735,2]
[364707004,1749213054543,-500.0,0.00022735,2]
[364707005,1749213054552,-151.0,0.00022735,2]
[364707006,1749213054561,-151.0,0.00022735,2]
[364707007,1749213054571,-151.0,0.00022735,2]
[364707008,1749213054581,-500.0,0.00022735,2]
[364707009,1749213054592,-500.0,0.00022735,2]
[364707010,1749213054602,-151.0,0.00022735,2]
[364707011,1749213054611,-500.0,0.00022735,2]
[364707012,1749213054620,-151.0,0.00022735,2]
[364707013,1749213054630,-500.0,0.00022735,2]
[364707014,1749213054640,-500.0,0.00022735,2]
[364707015,1749213054650,-500.0,0.00022735,2]
[364707016,1749213054659,-500.0,0.00022735,2]
[364707017,1749213054669,-151.0,0.00022735,2]
[364707018,1749213054679,-151.0,0.00022735,2]
[364707019,1749213054688,-445.46,0.00022739,2]
[364707020,1749213054697,-440.0,0.00022739,2]
[364707021,1749213054706,-875.22,0.00022739,2]
[364707022,1749213054716,-444.9,0.00022739,2]
[364707023,1749213054726,-440.0,0.00022739,2]
[364707024,1749213054736,-505.29,0.00022739,2]
[364707025,1749213054746,-440.0,0.00022739,2]
[364707026,1749213054756,-745.08,0.00022739,2]
[364707027,1749213054768,-2205.3,0.00022739,2]
[364707028,1749213054778,-1464.36,0.00022739,2]
[364707029,1749213054788,-1629.33,0.00022739,2]
[364707030,1749213054798,-3035.51,0.00022739,2]
[364707031,1749213054808,-526.85,0.00022739,2]
[364707032,1749213054818,-599.08,0.00022739,2]
[364707034,1749213054828,-633.0,0.00022739,2]
[364707035,1749213054838,-742.14,0.00022739,2]
[364707036,1749213054847,-231.97454956,0.00022739,2]
[364707038,1749213054860,-1055.7,0.00022739,2]
[364707040,1749213054869,-1101.47,0.00022739,2]
[364707041,1749213054879,-453.26,0.00022739,2]
[364707042,1749213054889,-463.99,0.00022739,2]
[364707043,1749213054899,-4644.77,0.00022739,2]
[364707044,1749213054909,-311.34368962,0.00022739,2]
[364707045,1749213054918,-503.93,0.00022739,2]
[364707046,1749213054928,-759.25,0.00022739,2]
[364707047,1749213054938,-819.71,0.00022739,2]
[364707048,1749213054947,-944.35,0.00022739,2]
[364707049,1749213054956,-1034.83,0.00022739,2]
[364707050,1749213054966,-857.67,0.00022739,2]
[364707051,1749213054976,-189.07168157,0.00022739,2]
[364707052,1749213054986,-3064.33,0.00022739,2]
[364707053,1749213054995,-440.0,0.00022739,2]
[364707054,1749213055005,-1856.01,0.00022739,2]
[364707055,1749213055014,-440.0,0.00022739,2]
[364707056,1749213055026,-440.0,0.00022739,2]
[364707057,1749213055036,-500.0,0.00022762,2]
[364707058,1749213055046,-1180.0,0.00022762,2]
[364707059,1749213055057,-151.0,0.00022762,2]
[364707060,1749213055067,-151.0,0.00022762,2]
[364707061,1749213055076,-500.0,0.00022762,2]
[364707062,1749213055087,-500.0,0.00022762,2]
[364707063,1749213055097,-500.0,0.00022762,2]
[364707064,1749213055107,-500.0,0.00022762,2]
[364707065,1749213055116,-500.0,0.00022762,2]
[364707066,1749213055126,-254.32340032,0.00022762,2]
[364707067,1749213055135,-500.0,0.00022762,2]
[364707068,1749213055145,-500.0,0.00022762,2]
[364707069,1749213055155,-500.0,0.00022762,2]
[364707070,1749213055165,-500.0,0.00022762,2]
[364707071,1749213055174,-151.0,0.00022762,2]
[364707072,1749213055184,-151.0,0.00022762,2]
[364707073,1749213055194,-587.0,0.0002277,2]
[364707074,1749213055203,-900.0,0.00022775,2]
[364707075,1749213055214,-347.93882854,0.0002279,2]
[364707076,1749213055225,-1180.0,0.0002279,2]
[364707077,1749213055234,-203.16869086,0.0002279,2]
[364707078,1749213055243,-216.58091068,0.0002279,2]
[364707079,1749213055253,-500.0,0.0002279,2]
[364707080,1749213055262,-500.0,0.0002279,2]
[364707081,1749213055275,-500.0,0.0002279,2]
[364707082,1749213055284,-448.04849068,0.0002279,2]
[364707083,1749213055294,-500.0,0.0002279,2]
[364707084,1749213055304,-500.0,0.0002279,2]
[364707085,1749213055314,-500.0,0.0002279,2]
[364707086,1749213055326,-500.0,0.0002279,2]
[364707087,1749213055335,-500.0,0.0002279,2]
[364707088,1749213055345,-200.35640852,0.0002279,2]
[364707089,1749213055356,-151.0,0.0002279,2]
[364707090,1749213055365,-1893.23178955,0.00022807,71]
[364707091,1749213055376,-1180.0,0.00022817,2]
[364707092,1749213055385,-500.0,0.00022817,2]
[364707093,1749213055395,-350.66897876,0.00022817,2]
[364707094,1749213055404,-608.55428632,0.00022817,2]
[364707095,1749213055414,-500.0,0.00022817,2]
[364707096,1749213055424,-500.0,0.00022817,2]
[364707097,1749213055433,-500.0,0.00022817,2]
[364707098,1749213055443,-500.0,0.00022817,2]
[364707099,1749213055452,-500.0,0.00022817,2]
[364707100,1749213055462,-193.34465452,0.00022817,2]
[364707101,1749213055471,-2904.3218691,0.00022831,8]
[364707102,1749213055481,-1180.0,0.00022845,2]
[364707103,1749213055491,-152.60665104,0.00022845,2]
[364707104,1749213055500,-325.31816384,0.00022845,2]
[364707105,1749213055509,-500.0,0.00022845,2]
[364707106,1749213055522,-502.10144787,0.00022845,2]
[364707107,1749213055532,-500.0,0.00022845,2]
[364707108,1749213055542,-565.41779745,0.00022845,2]
[364707109,1749213055552,-311.3791089,0.00022849,2]
[364707110,1749213055562,-161.2315508,0.00022849,2]
[364707111,1749213055571,-1154.3959266,0.00022849,2]
[364707112,1749213055583,-319.0960488,0.00022849,2]
[364707113,1749213055594,-1180.0,0.00022872,2]
[364707114,1749213055604,-500.0,0.00022872,2]
[364707115,1749213055614,-218.31238332,0.00022886,2]
[364707116,1749213055624,-1180.0,0.00022899,2]
[364707117,1749213055635,-500.0,0.00022899,2]
[364707118,1749213055644,-151.0,0.000229,9]
[364707119,1749213055654,-110090.4359199,0.000229,7]
[364707120,1749213055665,-1180.0,0.00022927,2]
[364707121,1749213055675,-500.0,0.00022927,2]
[364707122,1749213055686,-1180.0,0.00022954,2]
[364707123,1749213055696,-509.32056134,0.00022954,2]
[364707124,1749213055706,-1180.0,0.00022982,2]
[364707125,1749213055717,-229.52673067,0.00023,3]
[364707126,1749213055727,-16696.85482766,0.00023,2]
[364707127,1749213055737,-628.98551686,0.00023,20]
[364707128,1749213055747,-160.0,0.00023,3]
[364707129,1749213055757,-160.0,0.00023,3]
[364707130,1749213055768,-10022.3948716,0.00023,2]
[364707131,1749213055778,-1327.39687771,0.00023,2]
[364707132,1749213055788,-160.0,0.00023,3]
[364707133,1749213055798,-160.0,0.00023,3]
[364707134,1749213055808,-834.50537533,0.00023,3]
[364707135,1749213055818,-423.83542519,0.00023,3]
[364707136,1749213055828,-1180.0,0.00023009,2]
[364707137,1749213055838,-160.0,0.00023012,2]
[364707138,1749213055848,-445.46,0.00023013,2]
[364707139,1749213055859,-440.0,0.00023013,2]
[364707140,1749213055869,-875.22,0.00023013,2]
[364707141,1749213055878,-444.9,0.00023013,2]
[364707142,1749213055887,-440.0,0.00023013,2]
[364707143,1749213055897,-505.29,0.00023013,2]
[364707144,1749213055907,-440.0,0.00023013,2]
[364707145,1749213055917,-745.08,0.00023013,2]
[364707146,1749213055927,-2205.3,0.00023013,2]
[364707147,1749213055937,-1464.36,0.00023013,2]
[364707148,1749213055947,-1629.33,0.00023013,2]
[364707149,1749213055956,-3035.51,0.00023013,2]
[364707150,1749213055965,-526.85,0.00023013,2]
[364707151,1749213055975,-599.08,0.00023013,2]
[364707152,1749213055985,-633.0,0.00023013,2]
[364707153,1749213055994,-742.14,0.00023013,2]
[364707154,1749213056004,-1055.7,0.00023013,2]
[364707155,1749213056014,-1101.47,0.00023013,2]
[364707156,1749213056026,-453.26,0.00023013,2]
[364707157,1749213056037,-463.99,0.00023013,2]
[364707158,1749213056046,-4644.77,0.00023013,2]
[364707159,1749213056056,-503.93,0.00023013,2]
[364707160,1749213056066,-759.25,0.00023013,2]
[364707161,1749213056076,-819.71,0.00023013,2]
[364707162,1749213056086,-944.35,0.00023013,2]
[364707163,1749213056095,-1034.83,0.00023013,2]
[364707164,1749213056105,-857.67,0.00023013,2]
[364707165,1749213056115,-3064.33,0.00023013,2]
[364707166,1749213056125,-535.87127578,0.00023013,2]
[364707167,1749213056134,-1856.01,0.00023013,2]
[364707168,1749213056144,-440.0,0.00023013,2]
[364707169,1749213056153,-497.6495711,0.00023013,2]
[364707170,1749213056163,-1180.0,0.00023036,2]
[364707171,1749213056173,-2904.3218691,0.00023038,8]
[364707172,1749213056183,-1180.0,0.00023064,2]
[364707173,1749213056193,-591.43,0.0002309,2]
[364707174,1749213056202,-1180.0,0.00023091,2]
[364707175,1749213056212,-122337.82,0.000231,7]
[364707176,1749213056222,-1180.0,0.00023119,2]
[364707177,1749213056232,-1180.0,0.00023146,2]
[364707178,1749213056242,-1180.0,0.00023173,2]
[364707179,1749213056252,-1695.74,0.000232,7]
[364707180,1749213056261,-22804.46,0.000232,2]
[364707181,1749213056273,-887.15,0.000232,7]
[364707182,1749213056283,-151.0,0.000232,7]
[364707183,1749213056293,-151.0,0.000232,7]
[364707184,1749213056303,-151.0,0.000232,7]
[364707185,1749213056313,-1180.0,0.00023201,2]
[364707186,1749213056322,-325.58,0.00023202,11]
[364707187,1749213056332,-505.57380754,0.00023221,2]
[364707188,1749213056342,-1180.0,0.00023228,2]
[364707189,1749213056352,-1500.0,0.00023232,2]
[364707190,1749213056362,-931.56778729,0.00023232,2]
[364707191,1749213056371,-1500.0,0.00023232,2]
[364707192,1749213056381,-2904.3218691,0.00023245,8]
[364707193,1749213056391,-1180.0,0.00023256,2]
[364707194,1749213056400,-1180.0,0.00023283,2]
[364707195,1749213056410,-445.46,0.00023287,2]
[364707196,1749213056420,-440.0,0.00023287,2]
[364707197,1749213056429,-875.22,0.00023287,2]
[364707198,1749213056439,-444.9,0.00023287,2]
[364707199,1749213056453,-440.0,0.00023287,2]
[364707200,1749213056462,-505.29,0.00023287,2]
[364707201,1749213056472,-440.0,0.00023287,2]
[364707202,1749213056482,-745.08,0.00023287,2]
[364707203,1749213056491,-2205.3,0.00023287,2]
[364707204,1749213056501,-1464.36,0.00023287,2]
[364707205,1749213056510,-1629.33,0.00023287,2]
[364707206,1749213056524,-3035.51,0.00023287,2]
[364707207,1749213056534,-526.85,0.00023287,2]
[364707208,1749213056543,-599.08,0.00023287,2]
[364707209,1749213056553,-633.0,0.00023287,2]
[364707210,1749213056564,-742.14,0.00023287,2]
[364707211,1749213056574,-1055.7,0.00023287,2]
[364707212,1749213056585,-1101.47,0.00023287,2]
[364707213,1749213056602,-453.26,0.00023287,2]
[364707214,1749213056612,-463.99,0.00023287,2]
[364707215,1749213056623,-4644.77,0.00023287,2]
[364707216,1749213056632,-503.93,0.00023287,2]
[364707217,1749213056641,-759.25,0.00023287,2]
[364707218,1749213056652,-819.71,0.00023287,2]
[364707219,1749213056662,-944.35,0.00023287,2]
[364707220,1749213056671,-1034.83,0.00023287,2]
[364707221,1749213056681,-857.67,0.00023287,2]
[364707222,1749213056692,-3064.33,0.00023287,2]
[364707223,1749213056701,-1856.01,0.00023287,2]
[364707224,1749213056710,-238.39292671,0.00023287,2]
[364707225,1749213056720,-151.0,0.000233,6]
[364707226,1749213056730,-1180.0,0.0002331,2]
[364707227,1749213056740,-989.693131,0.00023324,3]
[364707228,1749213056750,-1180.0,0.00023338,2]
[364707229,1749213056760,-1200.39338231,0.00023365,2]
[364707230,1749213056773,-215.0738,0.00023435,2]
[364707231,1749213056784,-600.0,0.00023442,2]
[364707232,1749213056794,-2904.3218691,0.00023452,9]
[364707233,1749213056804,-4822.92620664,0.000235,2]
[364707234,1749213056814,-47469.57400398,0.000235,2]
[364707235,1749213056824,-823.0,0.00023512,2]
[364707236,1749213056834,-800.0,0.00023528,2]
[364707237,1749213056844,-800.0,0.00023531,2]
[364707238,1749213056855,-445.46,0.00023561,2]
[364707239,1749213056866,-440.0,0.00023561,2]
[364707240,1749213056875,-875.22,0.00023561,2]
[364707241,1749213056885,-444.9,0.00023561,2]
[364707242,1749213056895,-440.0,0.00023561,2]
[364707243,1749213056905,-505.29,0.00023561,2]
[364707244,1749213056915,-440.0,0.00023561,2]
[364707245,1749213056925,-745.08,0.00023561,2]
[364707246,1749213056934,-2205.3,0.00023561,2]
[364707247,1749213056944,-1464.36,0.00023561,2]
[364707248,1749213056954,-1629.33,0.00023561,2]
[364707249,1749213056964,-3035.51,0.00023561,2]
[364707250,1749213056974,-526.85,0.00023561,2]
[364707251,1749213056983,-599.08,0.00023561,2]
[364707252,1749213056993,-633.0,0.00023561,2]
[364707253,1749213057003,-742.14,0.00023561,2]
[364707254,1749213057014,-1055.7,0.00023561,2]
[364707255,1749213057026,-151.0,0.00023561,7]
[364707256,1749213057035,-1101.47,0.00023561,2]
[364707257,1749213057045,-453.26,0.00023561,2]
[364707258,1749213057055,-463.99,0.00023561,2]
[364707259,1749213057064,-4644.77,0.00023561,2]
[364707260,1749213057074,-503.93,0.00023561,2]
[364707261,1749213057084,-759.25,0.00023561,2]
[364707262,1749213057094,-819.71,0.00023561,2]
[364707263,1749213057104,-944.35,0.00023561,2]
[364707264,1749213057114,-1034.83,0.00023561,2]
[364707265,1749213057125,-857.67,0.00023561,2]
[364707266,1749213057254,-3064.33,0.00023561,2]
[364707267,1749213057264,-1856.01,0.00023561,2]
[364707268,1749213057278,-218.31238332,0.00023647,2]
[364707269,1749213057288,-2904.3218691,0.00023659,9]
[364707270,1749213057297,-800.0,0.00023671,2]
[364707271,1749213057306,-153.0,0.00023671,2]
[364707272,1749213057316,-176.6779968,0.00023671,2]
[364707273,1749213057325,-176.6779968,0.00023671,2]
[364707274,1749213057335,-153.0,0.00023671,2]
[364707275,1749213057344,-176.6779968,0.00023671,2]
[364707276,1749213057354,-176.6779968,0.00023671,2]
[364707277,1749213057363,-153.0,0.00023671,2]
[364707278,1749213057373,-153.0,0.00023671,2]
[364707279,1749213057383,-153.0,0.00023671,2]
[364707280,1749213057392,-309.8421927,0.00023671,2]
[364707281,1749213057402,-400.0,0.00023673,2]
[364707282,1749213057411,-2565.65018686,0.0002368,2]
[364707283,1749213057420,-382.49554745,0.00023682,2]
[364707284,1749213057430,-879.25887938,0.00023686,2]
[364707285,1749213057440,-5000.0,0.00023696,30]
[364707286,1749213057449,-5000.0,0.00023696,30]
[364707287,1749213057459,-5000.0,0.00023696,30]
[364707288,1749213057468,-5000.0,0.00023696,30]
[364707289,1749213057477,-5000.0,0.00023696,30]
[364707290,1749213057486,-5000.0,0.00023696,30]
[364707291,1749213057496,-5000.0,0.00023696,30]
[364707292,1749213057505,-5000.0,0.00023696,30]
[364707293,1749213057515,-151.0,0.00023696,7]
[364707294,1749213057527,-151.0,0.00023696,7]
[364707295,1749213057537,-152.406247,0.00023696,7]
[364707296,1749213057546,-151.0,0.00023696,7]
[364707297,1749213057556,-225.806034,0.00023696,7]
[364707298,1749213057566,-315.04936747,0.000237,30]
[364707299,1749213057576,-11849.89752062,0.000237,30]
[364707300,1749213057588,-800.0,0.00023758,2]
[364707301,1749213057598,-10618.57401559,0.00023771,2]
[364707302,1749213057609,-500.0,0.00023773,2]
[364707303,1749213057624,-500.0,0.00023773,2]
[364707304,1749213057634,-506.14491247,0.00023773,2]
[364707305,1749213057644,-250.44469518,0.00023773,2]
[364707306,1749213057654,-2000.0,0.0002378,2]
[364707307,1749213057664,-2000.0,0.0002378,2]
[364707308,1749213057675,-195160.53699888,0.0002378,2]
[364707309,1749213057695,-782991.78404435,0.0002378,2]
[364707310,1749213057705,-151.0,0.0002378,7]
[364707311,1749213057715,-151.0,0.0002378,7]
[364707312,1749213057725,-151.0,0.0002378,7]
[364707313,1749213057735,-151.0,0.0002378,7]
[364707314,1749213057745,-151.0,0.0002378,7]
[364707315,1749213057754,-151.0,0.0002378,7]
[364707316,1749213057763,-151.0,0.0002378,7]
[364707317,1749213057777,-151.0,0.0002378,7]
[364707318,1749213057786,-151.0,0.0002378,7]
[364707319,1749213057795,-151.0,0.0002378,7]
[364707320,1749213057805,-151.0,0.0002378,7]
[364707321,1749213057814,-450.38021953,0.0002378,2]
[364707322,1749213057824,-151.0,0.0002378,7]
[364707323,1749213057833,-151.0,0.0002378,7]
[364707324,1749213057843,-151.0,0.0002378,7]
[364707325,1749213057854,-151.0,0.0002378,7]
[364707326,1749213057865,-151.743375,0.0002378,7]
[364707327,1749213057874,-151.0,0.0002378,7]
[364707328,1749213057885,-151.0,0.0002378,7]
[364707329,1749213057895,-151.0,0.0002378,7]
[364707330,1749213057905,-567032.07763709,0.000238,3]
[364707331,1749213058003,-440.0,0.00019178,2]
[364707332,1749213058013,-125.72537315,0.00019178,2]
[364707334,1749213108730,150.0,0.00018326,2]
[364707335,1749213186863,150.0,0.00017918,2]
[364707336,1749213267441,150.0,0.00017925,2]
[364707337,1749213340696,150.0,0.00017926,2]
[364707338,1749213416581,150.0,0.00017933,2]
[364707339,1749213447411,22019.37276432,0.0002465,120]
[364707340,1749213471675,455.09,0.00024658,120]
[364707341,1749213493409,150.0,0.00017927,2]
[364707342,1749213512478,440.0,0.00024658,120]
[364707343,1749213520525,272.003236,0.00013699,2]
[364707345,1749213568599,150.0,0.00017923,2]
[364707347,1749213646320,150.0,0.0001794,2]
[364707348,1749213722705,150.0,0.00017938,2]
[364707349,1749213796323,150.0,0.00017942,2]
[364707351,1749213870419,150.0,0.00017933,2]
[364707353,1749213940883,-259.91415826,0.00018082,2]
[364707354,1749213943770,150.0,0.00017949,2]
[364707355,1749213957119,-347.15279444,0.00018082,2]
[364707356,1749213957149,-400.37211639,0.00018082,2]
[364707357,1749213992091,-240.15643033,0.00018082,2]
[364707358,1749214013309,-1196.33437158,0.00018082,2]
[364707359,1749214013331,-1200.0,0.0001817,2]
[364707360,1749214013352,-300.0,0.0001817,2]
[364707361,1749214013376,-300.0,0.0001817,2]
[364707362,1749214013399,-300.0,0.0001817,2]
[364707363,1749214013421,-3353.66562842,0.00018171,2]
[364707364,1749214015972,150.0,0.00017976,2]
[364707365,1749214034111,-300.0,0.0001817,2]
[364707366,1749214034135,-688.80623402,0.00018171,2]
[364707367,1749214037091,-488.88256064,0.00018171,2]
[364707368,1749214041120,-9293.55407991,0.00018171,2]
[364707371,1749214049081,-1231.64713471,0.00018171,2]
[364707372,1749214049103,-216.29419162,0.00018597,2]
[364707373,1749214049124,-360.49031938,0.00018603,2]
[364707374,1749214049147,-150.0,0.00018771,2]
[364707375,1749214049170,-163.73428749,0.00019072,2]
[364707376,1749214049194,-163.27,0.00019165,2]
[364707377,1749214049215,-500.0,0.00019172,2]
[364707378,1749214049236,-500.0,0.00019172,2]
[364707379,1749214049263,-624.85139549,0.00019172,2]
[364707380,1749214049285,-513.47370403,0.00019172,2]
[364707381,1749214049305,-358.35450349,0.00019172,2]
[364707382,1749214049328,-506.29437118,0.00019172,2]
[364707383,1749214049349,-394.98746746,0.00019172,2]
[364707384,1749214049370,-500.0,0.00019172,2]
[364707385,1749214049394,-506.29437118,0.00019172,2]
[364707386,1749214049419,-500.0,0.00019172,2]
[364707387,1749214049443,-94.01574206,0.00019172,2]
[364707393,1749214087449,150.0,0.00017945,2]
[364707401,1749214158114,-199.63470485,0.00018175,2]
[364707403,1749214161109,-16.52584215,0.00018175,2]
[364707404,1749214161131,-1288.71655785,0.00018176,2]
[364707405,1749214161168,150.0,0.00017943,2]
[364707406,1749214166099,-205.79233735,0.00018176,2]
[364707407,1749214166121,-125.46457011,0.000188,2]
[364707461,1749214232304,-24.53542989,0.000188,2]
[364707462,1749214232313,-177.37881147,0.00019071,2]
[364707463,1749214232322,-300.0,0.0001917,2]
[364707464,1749214232332,-300.0,0.0001917,2]
[364707465,1749214232341,-300.0,0.0001917,2]
[364707466,1749214232351,-300.0,0.0001917,2]
[364707467,1749214232361,-1200.0,0.0001917,2]
[364707468,1749214232370,-806.06370244,0.00019171,2]
[364707469,1749214232379,-627.75556256,0.00019171,2]
[364707470,1749214232389,-627.75556256,0.00019171,2]
[364707471,1749214232399,-627.75556256,0.00019171,2]
[364707472,1749214232408,-627.75556256,0.00019171,2]
[364707473,1749214232418,-627.75556256,0.00019171,2]
[364707474,1749214232427,-627.75556256,0.00019171,2]
[364707475,1749214232436,-627.75556256,0.00019171,2]
[364707476,1749214232446,-627.75556256,0.00019171,2]
[364707477,1749214232455,-627.75556256,0.00019171,2]
[364707478,1749214232464,-627.75556256,0.00019171,2]
[364707479,1749214232473,-627.75556256,0.00019171,2]
[364707480,1749214232483,-627.75556256,0.00019171,2]
[364707481,1749214232492,-627.75556256,0.00019171,2]
[364707482,1749214232501,-627.75556256,0.00019171,2]
[364707483,1749214232511,-627.75556256,0.00019171,2]
[364707484,1749214232520,-627.75556256,0.00019171,2]
[364707485,1749214232530,-627.75556256,0.00019171,2]
[364707486,1749214232539,-627.75556256,0.00019171,2]
[364707487,1749214232548,-627.75556256,0.00019171,2]
[364707488,1749214232558,-627.75556256,0.00019171,2]
[364707489,1749214232567,-614.83118333,0.00019171,2]
[364707490,1749214232577,-614.83118333,0.00019171,2]
[364707491,1749214232586,-614.83118333,0.00019171,2]
[364707492,1749214232595,-614.83118333,0.00019171,2]
[364707493,1749214232605,-614.83118333,0.00019171,2]
[364707494,1749214232615,-614.83118333,0.00019171,2]
[364707495,1749214232624,-614.83118333,0.00019171,2]
[364707496,1749214232633,-614.83118333,0.00019171,2]
[364707497,1749214232642,-614.83118333,0.00019171,2]
[364707498,1749214232651,-614.83118333,0.00019171,2]
[364707499,1749214232661,-614.83118333,0.00019171,2]
[364707500,1749214232670,-614.83118333,0.00019171,2]
[364707501,1749214232679,-614.83118333,0.00019171,2]
[364707502,1749214232689,-614.83118333,0.00019171,2]
[364707503,1749214232698,-614.83118333,0.00019171,2]
[364707504,1749214232708,-614.83118333,0.00019171,2]
[364707505,1749214232717,-614.83118333,0.00019171,2]
[364707506,1749214232726,-614.83118333,0.00019171,2]
[364707507,1749214232736,-614.83118333,0.00019171,2]
[364707508,1749214232745,-614.83118333,0.00019171,2]
[364707509,1749214232754,-614.83118333,0.00019171,2]
[364707510,1749214232763,-614.83118333,0.00019171,2]
[364707511,1749214232772,-614.83118333,0.00019171,2]
[364707512,1749214232782,-614.83118333,0.00019171,2]
[364707513,1749214232791,-614.83118333,0.00019171,2]
[364707514,1749214232801,-614.83118333,0.00019171,2]
[364707515,1749214232810,-614.83118333,0.00019171,2]
[364707516,1749214232819,-614.83118333,0.00019171,2]
[364707517,1749214232829,-614.83118333,0.00019171,2]
[364707518,1749214232838,-614.83118333,0.00019171,2]
[364707519,1749214232847,-614.83118333,0.00019171,2]
[364707520,1749214232857,-614.83118333,0.00019171,2]